bitfinex/quotes_BTCUSD_20250324
["timestamp","ask_amount","ask_price","bid_price","bid_amount"]
[1742787535574,0.31751232,86535.0,86534.0,0.134659]
[1742787537631,0.00595632,86535.0,86534.0,0.25423403]
[1742787537811,0.00595632,86535.0,86534.0,0.33423403]
[1742787538176,0.00594475,86535.0,86534.0,0.33423403]
[1742787538620,0.311555,86541.0,86534.0,0.33423403]
[1742787538795,0.00594891,86535.0,86534.0,0.214659]
[1742787539005,0.242674,86536.0,86534.0,0.33423403]
[1742787539136,0.242674,86536.0,86535.0,0.11957503]
[1742787539713,0.26077397,86536.0,86535.0,0.11957503]
[1742787540561,0.26077397,86536.0,86535.0,0.12157503]
[1742787540772,0.26077397,86536.0,86535.0,0.25489503]
[1742787541138,0.26077397,86536.0,86535.0,0.002]
[1742787541139,0.56077397,86536.0,86535.0,0.002]
[1742787541336,0.59186282,86536.0,86535.0,0.002]
[1742787541543,0.666612,86536.0,86535.0,0.002]
[1742787541700,0.67253705,86536.0,86535.0,0.002]
[1742787541898,0.65443708,86536.0,86535.0,0.002]
[1742787542100,0.65443708,86536.0,86535.0,0.003]
[1742787542737,0.65443708,86536.0,86535.0,0.002]
[1742787542963,0.65843708,86536.0,86535.0,0.002]
[1742787543379,0.311556,86535.0,86534.0,0.000339]
[1742787543737,0.3174852,86535.0,86534.0,0.000339]
[1742787544488,0.3214852,86535.0,86534.0,0.000339]
[1742787544688,0.3380332,86535.0,86534.0,0.000339]
[1742787545094,0.35613587,86535.0,86534.0,0.000339]
[1742787547275,0.35213587,86535.0,86534.0,0.000339]
[1742787547509,0.35513587,86535.0,86534.0,0.000339]
[1742787552797,0.55721985,86534.0,86533.0,4e-07]
[1742787552995,0.55721985,86534.0,86529.0,8e-07]
[1742787552996,0.66132985,86530.0,86529.0,8e-07]
[1742787553371,0.66710261,86530.0,86529.0,8e-07]
[1742787553853,0.66710261,86530.0,86493.0,0.0825]
[1742787553854,0.531187,86510.0,86493.0,0.0825]
[1742787554034,0.346736,86521.0,86488.0,0.5752]
[1742787554035,0.011562,86489.0,86488.0,0.5752]
[1742787554230,0.011562,86488.0,86487.0,0.0825]
[1742787554432,0.011562,86488.0,86487.0,0.33539503]
[1742787554644,0.01737509,86488.0,86487.0,0.33539503]
[1742787555235,0.02916078,86488.0,86487.0,0.33539503]
[1742787556035,0.02916078,86488.0,86487.0,0.34039503]
[1742787556260,0.0472686,86488.0,86487.0,0.34039503]
[1742787556460,0.0472686,86488.0,86487.0,0.005]
[1742787556461,0.3472686,86488.0,86487.0,0.005]
[1742787556661,0.542869,86466.0,86464.0,0.0825]
[1742787556937,0.542869,86466.0,86465.0,0.25330277]
[1742787557101,0.54859369,86466.0,86465.0,0.25330277]
[1742787557309,0.54859369,86466.0,86465.0,0.13372774]
[1742787557777,0.56670734,86466.0,86465.0,0.13372774]
[1742787558138,0.56770734,86466.0,86465.0,0.13872774]
[1742787559279,0.56870734,86466.0,86465.0,0.14372774]
[1742787559807,0.56870734,86466.0,86465.0,0.01040774]
[1742787560013,0.56870734,86466.0,86465.0,0.14376774]
[1742787560896,0.32583834,86466.0,86465.0,0.26334277]
[1742787567873,0.02583834,86466.0,86465.0,0.50621477]
[1742787568080,0.00772469,86466.0,86465.0,0.63411477]
[1742787568284,0.002,86466.0,86465.0,0.63411477]
[1742787568973,0.002,86466.0,86465.0,0.63445357]
[1742787570961,0.002,86466.0,86465.0,0.13032157]
[1742787570962,0.013565,86466.0,86465.0,0.13032157]
[1742787571074,0.002,86466.0,86465.0,0.01074654]
[1742787571296,0.33732251,86466.0,86465.0,0.01074654]
[1742787571497,0.33732251,86466.0,86465.0,0.14410654]
[1742787571718,0.33732251,86466.0,86465.0,0.01074654]
[1742787571928,0.31920961,86466.0,86465.0,0.01074654]
[1742787572157,0.31820961,86466.0,86465.0,0.00574654]
[1742787573396,0.31720961,86466.0,86465.0,0.00074654]
[1742787574142,0.31720961,86466.0,86465.0,0.00474654]
[1742787575152,0.33532579,86466.0,86465.0,0.00474654]
[1742787576584,0.33532579,86466.0,86465.0,0.00074654]
[1742787577105,0.33532579,86466.0,86465.0,0.00174654]
[1742787581908,0.33532579,86466.0,86465.0,0.13510654]
[1742787582071,0.33532579,86466.0,86465.0,0.00174654]
[1742787595345,0.31720961,86466.0,86465.0,0.00174654]
[1742787598428,0.3353248,86466.0,86465.0,0.00174654]
[1742787604606,0.3353248,86466.0,86465.0,0.00164843]
[1742787610010,0.31720961,86466.0,86465.0,0.13496843]
[1742787612848,0.33532504,86466.0,86465.0,0.13496843]
[1742787615118,0.33532504,86466.0,86465.0,0.43513046]
[1742787615119,0.02376004,86466.0,86465.0,0.43513046]
[1742787615315,0.02376004,86466.0,86465.0,0.38584346]
[1742787615514,0.01811543,86466.0,86465.0,0.38584346]
[1742787615690,0.02358553,86466.0,86465.0,0.38584346]
[1742787616249,0.02358553,86466.0,86465.0,0.39640846]
[1742787616700,0.01811543,86466.0,86465.0,0.39940846]
[1742787617454,0.016548,86486.0,86480.0,0.011563]
[1742787617660,0.01811245,86483.0,86481.0,0.25289503]
[1742787617868,0.01811245,86483.0,86481.0,0.82849503]
[1742787618088,0.00550354,86482.0,86481.0,0.84005803]
[1742787618282,0.01811245,86483.0,86482.0,0.242824]
[1742787618433,0.01811245,86483.0,86482.0,0.36239903]
[1742787618634,0.02363265,86483.0,86482.0,0.36239903]
[1742787619190,0.01811245,86483.0,86482.0,0.11957503]
[1742787619391,0.011563,86482.0,86481.0,0.5756]
[1742787619546,0.311563,86482.0,86481.0,0.5756]
[1742787619750,0.542869,86466.0,86465.0,0.00064843]
[1742787619956,0.54830578,86466.0,86465.0,0.13392843]
[1742787620794,0.31700178,86466.0,86465.0,0.13392843]
[1742787621278,0.30543678,86466.0,86465.0,0.25350346]
[1742787621398,0.00543678,86466.0,86465.0,0.49637546]
[1742787621601,0.00543678,86466.0,86465.0,0.57337546]
[1742787621805,0.02811,86486.0,86478.0,0.011563]
[1742787622026,0.3,86480.0,86479.0,0.25285503]
[1742787623230,0.301,86480.0,86479.0,0.25285503]
[1742787623596,0.312563,86480.0,86479.0,0.25285503]
[1742787623923,0.312563,86480.0,86479.0,0.27566901]
[1742787624133,0.312563,86480.0,86479.0,0.25285503]
[1742787624530,0.311563,86480.0,86479.0,0.25285503]
[1742787624736,0.311563,86480.0,86479.0,0.25485503]
[1742787624955,0.3296752,86480.0,86479.0,0.25485503]
[1742787625484,0.0181122,86480.0,86479.0,0.34341803]
[1742787626094,0.0181122,86480.0,86479.0,0.36687153]
[1742787628786,0.0182817,86480.0,86479.0,0.36687153]
[1742787630564,0.0001695,86480.0,86479.0,0.36687153]
[1742787631539,0.0001695,86480.0,86479.0,0.36487153]
[1742787631700,0.0001695,86480.0,86479.0,0.94035153]
[1742787631906,0.0001695,86480.0,86479.0,0.94335153]
[1742787632772,0.0001695,86480.0,86479.0,0.94035153]
[1742787633184,0.0001695,86480.0,86479.0,0.94435153]
[1742787633729,0.0001695,86480.0,86479.0,0.81107153]
[1742787633930,0.0001695,86480.0,86479.0,0.94431153]
[1742787644832,0.0001695,86480.0,86479.0,0.85574853]
[1742787644833,0.2429995,86480.0,86479.0,0.85574853]
[1742787645154,0.25469086,86480.0,86479.0,0.57948]
[1742787645367,0.5664007,86480.0,86479.0,0.004]
[1742787646299,0.54286,86469.0,86468.0,0.13324]
[1742787646705,0.55445547,86469.0,86468.0,0.13324]
[1742787647522,0.55545547,86469.0,86468.0,0.13324]
[1742787647725,0.542869,86466.0,86460.0,0.57544]
[1742787647944,0.55448082,86466.0,86465.0,0.13388843]
[1742787649673,0.55448082,86466.0,86465.0,0.13488843]
[1742787649896,0.55448082,86466.0,86465.0,0.00164843]
[1742787651053,0.55448082,86466.0,86465.0,0.00064843]
[1742787652050,0.55548082,86466.0,86465.0,0.00064843]
[1742787653089,0.55748082,86466.0,86465.0,0.00064843]
[1742787653842,0.55548082,86466.0,86465.0,0.00064843]
[1742787654380,0.55748082,86466.0,86465.0,0.00064843]
[1742787654796,0.55548082,86466.0,86465.0,0.00064843]
[1742787654996,0.55448082,86466.0,86465.0,0.00064843]
[1742787656346,0.55548082,86466.0,86465.0,0.00064843]
[1742787664531,0.63186967,86466.0,86465.0,0.00064843]
[1742787664719,0.63186967,86466.0,86462.0,0.0003386]
[1742787664720,0.63751785,86463.0,86462.0,3e-08]
[1742787665078,0.79341814,86463.0,86462.0,2.8e-07]
[1742787665210,0.79341814,86463.0,86448.0,0.000339]
[1742787665211,0.542917,86449.0,86448.0,0.000339]
[1742787665416,0.542917,86449.0,86448.0,0.00046146]
[1742787665417,0.64888299,86449.0,86448.0,0.00046146]
[1742787666768,0.65088299,86449.0,86448.0,0.00046146]
[1742787667262,0.65088299,86449.0,86442.0,4.6e-07]
[1742787667263,0.55747485,86443.0,86442.0,4.6e-07]
[1742787667520,0.69359788,86443.0,86442.0,4.6e-07]
[1742787667673,0.70486699,86443.0,86442.0,4.6e-07]
[1742787667857,0.7229891,86443.0,86442.0,4.6e-07]
[1742787668550,0.7269891,86443.0,86442.0,4.6e-07]
[1742787668856,0.7229891,86443.0,86442.0,4.6e-07]
[1742787669208,0.7259891,86443.0,86442.0,4.6e-07]
[1742787669612,0.7509891,86443.0,86442.0,4.6e-07]
[1742787669999,0.7559891,86443.0,86442.0,4.6e-07]
[1742787670590,0.87556413,86443.0,86442.0,4.6e-07]
[1742787671267,0.7559891,86443.0,86442.0,4.6e-07]
[1742787671396,0.011569,86432.0,86431.0,4.6e-07]
[1742787671604,0.68831365,86432.0,86431.0,4.6e-07]
[1742787672608,0.69031365,86432.0,86431.0,4.6e-07]
[1742787672811,0.69231365,86432.0,86431.0,4.6e-07]
[1742787673012,0.69031365,86432.0,86431.0,4.6e-07]
[1742787673464,0.69431365,86432.0,86431.0,4.6e-07]
[1742787674862,0.71243973,86432.0,86431.0,4.6e-07]
[1742787675877,0.5928647,86432.0,86431.0,4.6e-07]
[1742787676477,0.6094127,86432.0,86431.0,0.00016996]
[1742787679468,0.59487185,86432.0,86431.0,0.00016996]
[1742787681333,0.27832385,86432.0,86431.0,0.07516996]
[1742787681482,0.55619777,86432.0,86431.0,0.00016996]
[1742787681806,0.55719777,86432.0,86431.0,0.00016996]
[1742787682228,0.55819777,86432.0,86431.0,0.00016996]
[1742787682509,0.55419777,86432.0,86431.0,0.00016996]
[1742787682709,0.55419777,86432.0,86431.0,0.13344996]
[1742787683271,0.55619777,86432.0,86431.0,0.13344996]
[1742787687362,0.57432119,86432.0,86431.0,0.13344996]
[1742787688147,0.33135719,86432.0,86431.0,0.17934996]
[1742787688346,0.33135719,86432.0,86431.0,0.61689199]
[1742787688503,0.33135719,86432.0,86431.0,0.37392499]
[1742787688946,0.32935719,86432.0,86431.0,0.37392499]
[1742787689127,0.32935719,86432.0,86431.0,0.60532299]
[1742787689330,0.32969619,86432.0,86431.0,0.60732299]
[1742787689541,0.32969619,86432.0,86431.0,0.60532299]
[1742787689740,0.32969619,86432.0,86431.0,0.37392499]
[1742787690165,0.34126519,86432.0,86431.0,0.37392499]
[1742787690870,0.34126519,86432.0,86431.0,0.37692499]
[1742787691065,0.32969619,86432.0,86431.0,0.37692499]
[1742787691321,0.32969619,86432.0,86431.0,0.38849399]
[1742787692486,0.56109119,86432.0,86431.0,0.37692499]
[1742787693151,0.32969619,86432.0,86431.0,0.37692499]
[1742787694286,0.02969619,86432.0,86431.0,0.38849399]
[1742787694743,0.02969619,86432.0,86431.0,0.37692499]
[1742787702574,0.02969619,86432.0,86431.0,0.38849399]
[1742787702723,0.01157277,86432.0,86431.0,0.38849399]
[1742787702930,0.000339,86432.0,86431.0,0.38849399]
[1742787705305,0.000339,86432.0,86431.0,0.96429399]
[1742787707447,0.01167001,86432.0,86431.0,0.96429399]
[1742787707648,0.000339,86432.0,86431.0,0.96429399]
[1742787725591,0.000339,86432.0,86431.0,0.83101399]
[1742787725793,0.000339,86432.0,86431.0,0.96417399]
[1742787731096,0.000339,86432.0,86431.0,0.98229499]
[1742787738154,0.000339,86432.0,86431.0,0.97072599]
[1742787738358,0.000339,86432.0,86431.0,0.98229499]
[1742787741374,0.000339,86432.0,86431.0,0.84913499]
[1742787741579,0.000339,86432.0,86431.0,0.98229499]
[1742787747709,0.000339,86432.0,86431.0,0.84913499]
[1742787747916,0.243303,86432.0,86431.0,0.57896996]
[1742787748127,0.55461488,86432.0,86431.0,0.57896996]
[1742787748332,0.55461488,86432.0,86431.0,0.71208996]
[1742787748736,0.55461488,86432.0,86431.0,0.70908996]
[1742787748951,0.01165088,86432.0,86431.0,0.69554499]
[1742787749156,0.31165088,86432.0,86431.0,0.82966499]
[1742787749355,0.32321988,86432.0,86431.0,0.82866499]
[1742787749757,0.32321988,86432.0,86431.0,0.82966499]
[1742787749970,0.32321988,86432.0,86431.0,0.82866499]
[1742787750383,0.32321988,86432.0,86431.0,0.83166499]
[1742787750692,0.01165088,86432.0,86431.0,0.83166499]
[1742787750901,0.01165088,86432.0,86431.0,0.84323399]
[1742787751115,0.000339,86432.0,86431.0,0.84323399]
[1742787758756,0.000339,86432.0,86431.0,0.86135499]
[1742787769798,0.000339,86432.0,86431.0,0.80373499]
[1742787770006,0.000339,86432.0,86431.0,1.02142938]
[1742787770007,1e-06,86432.0,86431.0,1.02142938]
[1742787770217,1e-06,86432.0,86431.0,1.04767567]
[1742787770450,1e-06,86432.0,86431.0,1.46647487]
[1742787770659,0.0001695,86466.0,86465.0,0.318372]
[1742787770862,0.00029164,86466.0,86465.0,1.14678703]
[1742787771511,0.00029164,86466.0,86465.0,1.18154303]
[1742787773063,6.4e-07,86466.0,86465.0,1.18154303]
[1742787773272,6.4e-07,86466.0,86465.0,1.20108388]
[1742787773682,6.4e-07,86466.0,86465.0,1.20508388]
[1742787774298,6.4e-07,86466.0,86465.0,1.20108388]
[1742787774727,0.0001695,86480.0,86479.0,0.011563]
[1742787774958,0.0001695,86480.0,86479.0,0.34443028]
[1742787775172,0.0001695,86480.0,86479.0,0.34211803]
[1742787775389,0.0001695,86480.0,86479.0,0.57338803]
[1742787776922,0.0001695,86480.0,86479.0,0.62228803]
[1742787777579,0.0001695,86480.0,86479.0,0.62528803]
[1742787777759,0.0001695,86480.0,86479.0,0.63028803]
[1742787778558,0.0001695,86480.0,86479.0,0.62228803]
[1742787778967,0.0021695,86480.0,86479.0,0.63028803]
[1742787779591,0.0021695,86480.0,86479.0,0.6531014]
[1742787780359,0.0021695,86480.0,86479.0,0.6530614]
[1742787780564,0.0021695,86480.0,86479.0,0.5200214]
[1742787780776,0.0021695,86480.0,86479.0,0.6530614]
[1742787781797,0.0021695,86480.0,86479.0,0.6878074]
[1742787784553,0.0021695,86480.0,86479.0,0.6877674]
[1742787787086,0.0021695,86480.0,86479.0,1.27774825]
[1742787791063,0.0021695,86480.0,86479.0,1.1016614]
[1742787796927,0.0021695,86480.0,86479.0,0.9686614]
[1742787797164,0.0021695,86480.0,86479.0,1.1016214]
[1742787804154,0.0021695,86480.0,86479.0,1.1844214]
[1742787804726,0.0021695,86480.0,86479.0,1.19896225]
[1742787806436,0.0021695,86480.0,86479.0,1.24616225]
[1742787808443,0.0021695,86480.0,86479.0,1.28193718]
[1742787808822,0.0021695,86480.0,86479.0,1.24616225]
[1742787814395,0.0021695,86480.0,86479.0,1.28193069]
[1742787814601,0.0021695,86480.0,86479.0,1.24616225]
[1742787823156,0.0021695,86480.0,86479.0,1.24612225]
[1742787826271,0.0021695,86480.0,86479.0,0.9686614]
[1742787826507,0.0021695,86480.0,86479.0,1.1015814]
[1742787835310,0.0021695,86480.0,86479.0,1.1015414]
[1742787835757,0.0021695,86480.0,86479.0,1.11608225]
[1742787835955,0.0021695,86480.0,86479.0,1.19768225]
[1742787848237,0.0021695,86480.0,86479.0,0.1503884]
[1742787848441,0.2449995,86480.0,86479.0,0.73905337]
[1742787848655,0.2449995,86480.0,86479.0,0.008]
[1742787848656,0.67606753,86480.0,86479.0,0.008]
[1742787849070,0.67506753,86480.0,86479.0,0.005]
[1742787849489,0.67506753,86480.0,86479.0,0.007]
[1742787849842,0.67506753,86480.0,86479.0,0.005]
[1742787850043,0.69161553,86480.0,86479.0,0.005]
[1742787850311,0.66855,86473.0,86472.0,2.7e-07]
[1742787850518,0.542867,86467.0,86436.0,0.011569]
[1742787850724,0.623267,86467.0,86450.0,0.02281363]
[1742787850928,0.62838461,86467.0,86451.0,0.13288]
[1742787851585,0.64650216,86467.0,86451.0,0.13288]
[1742787851834,0.70067354,86467.0,86451.0,0.13288]
[1742787852092,0.70067354,86467.0,86466.0,0.0011694]
[1742787852329,0.70167354,86467.0,86466.0,0.0011694]
[1742787855111,0.69280216,86467.0,86466.0,0.0011694]
[1742787855584,0.70935016,86467.0,86466.0,0.0011694]
[1742787867984,0.58365016,86467.0,86466.0,0.0011694]
[1742787871547,0.66095016,86467.0,86466.0,0.0011694]
[1742787871787,0.84036604,86467.0,86466.0,4e-07]
[1742787872916,0.70625016,86467.0,86466.0,4e-07]
[1742787873341,0.531344,86451.0,86450.0,0.13288]
[1742787873544,0.531344,86451.0,86450.0,0.13300214]
[1742787873545,0.542911,86451.0,86450.0,0.13300214]
[1742787873718,0.54802228,86451.0,86450.0,0.13300214]
[1742787874102,0.56613999,86451.0,86450.0,0.13300214]
[1742787874501,0.56613999,86451.0,86450.0,0.13400214]
[1742787874677,0.56613999,86451.0,86450.0,0.13600214]
[1742787875605,0.32322899,86451.0,86450.0,0.54399117]
[1742787875820,0.02322899,86451.0,86450.0,0.54399117]
[1742787876304,0.02324953,86451.0,86450.0,0.30107717]
[1742787877935,0.02324953,86451.0,86450.0,0.31264417]
[1742787878343,0.01811771,86451.0,86450.0,0.31264417]
[1742787880247,0.0232466,86451.0,86450.0,0.31264417]
[1742787881512,0.01811771,86451.0,86450.0,0.31264417]
[1742787883287,0.0232466,86451.0,86450.0,0.31264417]
[1742787883385,0.01811771,86451.0,86450.0,0.31264417]
[1742787884713,0.0232466,86451.0,86450.0,0.31264417]
[1742787885144,0.01811771,86451.0,86450.0,0.31264417]
[1742787887214,0.01811771,86451.0,86450.0,0.31281367]
[1742787890060,0.01811771,86451.0,86450.0,0.30124667]
[1742787890464,0.02325251,86451.0,86450.0,0.30124667]
[1742787894574,0.02325251,86451.0,86450.0,0.87692667]
[1742787894741,0.02325251,86451.0,86450.0,0.87688667]
[1742787897569,0.25459651,86451.0,86450.0,0.87688667]
[1742787897905,0.02325251,86451.0,86450.0,0.87688667]
[1742787898858,0.25459651,86451.0,86450.0,0.74404667]
[1742787899030,0.02325251,86451.0,86450.0,0.87688667]
[1742787899242,0.02325251,86451.0,86450.0,0.83138667]
[1742787899456,0.02325251,86451.0,86450.0,0.69854667]
[1742787899620,0.02325251,86451.0,86450.0,0.83138667]
[1742787899821,0.03481951,86451.0,86450.0,0.83138667]
[1742787900365,0.33481951,86451.0,86450.0,0.57897164]
[1742787900729,0.33481951,86451.0,86450.0,0.71181164]
[1742787900972,0.33481951,86451.0,86450.0,0.57897164]
[1742787901202,0.33481951,86451.0,86450.0,0.71181164]
[1742787901448,0.33481951,86451.0,86450.0,0.70981164]
[1742787901932,0.33481951,86451.0,86450.0,0.71081164]
[1742787902425,0.33481951,86451.0,86450.0,0.57797164]
[1742787902677,0.41511951,86451.0,86450.0,0.70981164]
[1742787902923,0.3970018,86451.0,86450.0,0.00129164]
[1742787903135,0.3970018,86451.0,86450.0,0.00229164]
[1742787903562,0.3970018,86451.0,86450.0,0.00129164]
[1742787903978,0.3197018,86451.0,86450.0,0.00129164]
[1742787904404,0.3167018,86451.0,86450.0,0.00129164]
[1742787904627,0.3167018,86451.0,86450.0,0.00029164]
[1742787904823,0.3177018,86451.0,86450.0,0.00029164]
[1742787905484,0.3197018,86451.0,86450.0,0.00029164]
[1742787905999,0.27216422,86451.0,86450.0,0.13313164]
[1742787906353,0.27216422,86451.0,86450.0,0.25270667]
[1742787906354,0.02925322,86451.0,86450.0,0.25270667]
[1742787906553,0.02625322,86451.0,86450.0,0.25270667]
[1742787906985,0.34082022,86451.0,86450.0,0.25270667]
[1742787907201,0.34082022,86451.0,86450.0,0.13313164]
[1742787907401,0.33782022,86451.0,86450.0,0.13313164]
[1742787907735,0.33782022,86451.0,86450.0,0.00029164]
[1742787907897,0.42172022,86451.0,86450.0,0.00029164]
[1742787908102,0.41972022,86451.0,86450.0,0.00029164]
[1742787908432,0.42172022,86451.0,86450.0,0.00029164]
[1742787908649,0.33782022,86451.0,86450.0,0.00029164]
[1742787909601,0.33782022,86451.0,86450.0,0.00129164]
[1742787909821,0.34936107,86451.0,86450.0,0.00129164]
[1742787910057,0.5673841,86451.0,86450.0,6.4e-07]
[1742787910476,0.44780907,86451.0,86450.0,6.4e-07]
[1742787910686,0.35136822,86451.0,86450.0,0.00017014]
[1742787910917,0.35436822,86451.0,86450.0,0.13301014]
[1742787911126,0.35436822,86451.0,86450.0,0.1330095]
[1742787911531,0.35636822,86451.0,86450.0,0.1330095]
[1742787911667,0.35436822,86451.0,86450.0,0.1330095]
[1742787912055,0.35536822,86451.0,86450.0,0.1330095]
[1742787913122,0.35236822,86451.0,86450.0,0.1330095]
[1742787913279,0.35736822,86451.0,86450.0,0.1330095]
[1742787913716,0.35236822,86451.0,86450.0,0.1330095]
[1742787914107,0.35436822,86451.0,86450.0,0.1330095]
[1742787914510,0.33782022,86451.0,86450.0,0.1330095]
[1742787914735,0.3197018,86451.0,86450.0,0.1330095]
[1742787915877,0.3187018,86451.0,86450.0,0.1330095]
[1742787916407,0.3177018,86451.0,86450.0,0.1330095]
[1742787916613,0.3197018,86451.0,86450.0,0.1330095]
[1742787917418,0.3177018,86451.0,86450.0,0.1330095]
[1742787917697,0.3197018,86451.0,86450.0,0.1330095]
[1742787917898,0.33781985,86451.0,86450.0,0.1330095]
[1742787918101,0.33681985,86451.0,86450.0,0.1330095]
[1742787918495,0.33781985,86451.0,86450.0,0.1330095]
[1742787918696,0.33781985,86451.0,86450.0,0.2094095]
[1742787922984,0.33815885,86451.0,86450.0,0.2094095]
[1742787924297,0.02659185,86451.0,86450.0,0.2094095]
[1742787924508,0.02659185,86451.0,86450.0,0.32898453]
[1742787924707,0.33815885,86451.0,86450.0,0.32898453]
[1742787924912,0.33815885,86451.0,86450.0,0.1330095]
[1742787925804,0.33715885,86451.0,86450.0,0.1330095]
[1742787926659,0.33515885,86451.0,86450.0,0.1330095]
[1742787927079,0.33615885,86451.0,86450.0,0.1330095]
[1742787928487,0.33515885,86451.0,86450.0,0.1330095]
[1742787929287,0.33515885,86451.0,86450.0,0.1340095]
[1742787931100,0.32359185,86451.0,86450.0,0.1340095]
[1742787931741,0.33515885,86451.0,86450.0,0.1340095]
[1742787931944,0.02359185,86451.0,86450.0,0.54239853]
[1742787932074,0.0054738,86451.0,86450.0,0.62049853]
[1742787932421,0.000339,86451.0,86450.0,0.62049853]
[1742787933073,0.0053881,86451.0,86450.0,0.62049853]
[1742787933234,0.000339,86451.0,86450.0,0.62049853]
[1742787933440,0.0053881,86451.0,86450.0,0.62049853]
[1742787933641,0.000339,86451.0,86450.0,0.62049853]
[1742787933848,0.0053881,86451.0,86450.0,0.62049853]
[1742787934065,0.000339,86451.0,86450.0,0.62049853]
[1742787938491,0.000339,86451.0,86450.0,0.61949853]
[1742787939211,0.000339,86451.0,86450.0,0.62149853]
[1742787939392,0.000339,86451.0,86450.0,0.61949853]
[1742787939594,0.000339,86451.0,86450.0,0.66283356]
[1742787939883,0.000339,86451.0,86450.0,0.66383356]
[1742787940264,0.000339,86451.0,86450.0,0.66283356]
[1742787940814,0.000339,86451.0,86450.0,0.66483356]
[1742787941016,0.000339,86451.0,86450.0,0.66683356]
[1742787943047,0.000339,86451.0,86450.0,0.70159556]
[1742787945699,0.000339,86451.0,86450.0,0.65826053]
[1742787949871,0.000339,86451.0,86450.0,0.70161284]
[1742787951318,0.000339,86451.0,86450.0,0.65826053]
[1742787953719,0.000339,86451.0,86450.0,1.23390053]
[1742787964455,0.000339,86451.0,86450.0,0.82338453]
[1742787964657,0.54325,86451.0,86450.0,0.69938453]
[1742787964860,0.54325,86451.0,86450.0,0.7125295]
[1742787965053,0.5483696,86451.0,86450.0,0.7125295]
[1742787965212,0.54325,86451.0,86450.0,0.7125295]
[1742787965968,0.300339,86451.0,86450.0,0.7125295]
[1742787966271,0.0054586,86451.0,86450.0,1.20271853]
[1742787966588,0.000339,86451.0,86450.0,1.20271853]
[1742787967219,0.000339,86451.0,86450.0,1.21725938]
[1742787967841,0.000339,86451.0,86450.0,1.22910322]
[1742787968051,0.000339,86451.0,86450.0,1.22510322]
[1742787968264,0.000339,86451.0,86450.0,1.22710322]
[1742787968465,0.000339,86451.0,86450.0,1.22910322]
[1742787968765,0.000339,86451.0,86450.0,1.22510322]
[1742787968984,0.001339,86451.0,86450.0,1.23010322]
[1742787969224,0.002339,86451.0,86450.0,1.23510322]
[1742787969879,0.002339,86451.0,86450.0,1.22325938]
[1742787970151,0.002339,86451.0,86450.0,1.20871853]
[1742787972012,0.002339,86451.0,86450.0,1.07599853]
[1742787972226,0.54525,86451.0,86450.0,0.5858095]
[1742787972685,0.55037291,86451.0,86450.0,0.7185295]
[1742787972824,0.30746191,86451.0,86450.0,0.7185295]
[1742787973028,0.30746191,86451.0,86450.0,0.84967153]
[1742787973250,0.002339,86451.0,86450.0,0.84967153]
[1742787974537,0.001339,86451.0,86450.0,0.84467153]
[1742787974947,0.000339,86451.0,86450.0,0.84067153]
[1742787975402,0.000339,86451.0,86450.0,0.84167153]
[1742787975805,0.000339,86451.0,86450.0,0.84067153]
[1742787975959,0.000339,86451.0,86450.0,0.83967153]
[1742787976178,0.000339,86451.0,86450.0,0.84567153]
[1742787978512,0.000339,86451.0,86450.0,0.92697153]
[1742787982721,0.000339,86451.0,86450.0,0.79425153]
[1742787982934,0.000339,86451.0,86450.0,0.92697153]
[1742787988007,0.000339,86466.0,86465.0,0.322072]
[1742787988202,0.000339,86466.0,86465.0,0.57432703]
[1742787989222,0.000339,86466.0,86465.0,0.57832703]
[1742787989422,0.000339,86466.0,86465.0,0.58232703]
[1742787990201,0.000339,86466.0,86465.0,0.50312703]
[1742787990424,0.000339,86466.0,86465.0,0.52573722]
[1742787990630,0.000339,86466.0,86465.0,0.28286522]
[1742787990830,0.000339,86466.0,86465.0,0.52573722]
[1742787991085,0.00552336,86466.0,86465.0,0.52573722]
[1742787991212,0.000339,86466.0,86465.0,0.52573722]
[1742787991394,0.00552336,86466.0,86465.0,0.28286522]
[1742787991999,0.00552336,86466.0,86465.0,0.85846522]
[1742787994327,0.00552336,86466.0,86465.0,0.85046522]
[1742787994499,0.00552336,86466.0,86465.0,0.85346522]
[1742787994731,0.00552336,86466.0,86465.0,0.85646522]
[1742787995885,0.01708836,86466.0,86465.0,0.85646522]
[1742787996281,0.01708836,86466.0,86465.0,0.60421019]
[1742787996480,0.01708836,86466.0,86465.0,0.73689019]
[1742787996708,0.31708836,86466.0,86465.0,0.60421019]
[1742787996909,0.31708836,86466.0,86465.0,0.13868]
[1742787997489,0.31708836,86466.0,86465.0,0.13268]
[1742787997787,0.31708836,86466.0,86465.0,0.13568]
[1742787998172,0.31708836,86466.0,86465.0,0.13368]
[1742787998369,0.31708836,86466.0,86465.0,0.13268]
[1742787998571,0.31808836,86466.0,86465.0,0.13268]
[1742787999385,0.33620482,86466.0,86465.0,0.13268]
[1742788000544,0.02463982,86466.0,86465.0,0.25225503]
[1742788001030,0.02463982,86466.0,86465.0,0.49512703]
[1742788002947,0.02463982,86466.0,86465.0,0.25225503]
[1742788003449,0.02463982,86466.0,86465.0,0.26382003]
[1742788003657,0.02363982,86466.0,86465.0,0.26382003]
[1742788004781,0.02363982,86466.0,86465.0,0.26582003]
[1742788004984,0.02363982,86466.0,86465.0,0.25425503]
[1742788005190,0.55494382,86466.0,86465.0,0.25625503]
[1742788005346,0.32363982,86466.0,86465.0,0.25625503]
[1742788010368,0.32363982,86466.0,86465.0,0.26782003]
[1742788010896,0.32363982,86466.0,86465.0,0.25625503]
[1742788014367,0.32363982,86466.0,86465.0,0.26782003]
[1742788016468,0.32363982,86466.0,86465.0,0.25621503]
[1742788017301,0.33520482,86466.0,86465.0,0.25621503]
[1742788021120,0.33520482,86466.0,86465.0,0.004]
[1742788021331,0.33520482,86466.0,86465.0,0.13664]
[1742788024189,0.33520482,86466.0,86465.0,0.13664]
[1742788024410,0.33520482,86466.0,86465.0,0.004]
[1742788024615,0.33520482,86466.0,86465.0,0.13664]
[1742788024616,0.41340482,86466.0,86465.0,0.13664]
[1742788024825,0.39528836,86466.0,86465.0,0.004]
[1742788024996,0.5695576,86466.0,86465.0,1e-06]
[1742788025195,0.57671139,86466.0,86465.0,1e-06]
[1742788025567,0.011567,86452.0,86451.0,0.1328095]
[1742788025990,0.0166342,86452.0,86451.0,0.1328095]
[1742788026226,0.5479762,86452.0,86451.0,0.1328095]
[1742788026824,0.6273762,86452.0,86451.0,0.0001695]
[1742788027472,0.3050672,86452.0,86451.0,0.0001695]
[1742788027621,0.3166342,86452.0,86451.0,0.0001695]
[1742788027822,0.3050672,86452.0,86451.0,0.2315135]
[1742788028034,0.3050672,86452.0,86451.0,0.12074453]
[1742788028234,0.32318571,86452.0,86451.0,0.12074453]
[1742788029093,0.33475271,86452.0,86451.0,0.12174453]
[1742788029607,0.32318571,86452.0,86451.0,0.12174453]
[1742788030199,0.32318571,86452.0,86451.0,0.13331153]